[Event "WALTON 40th BAN-ch U20 Open 2022"]
[Site "Dhaka"]
[Date "2022.02.20"]
[Round "6.1"]
[White "Manon, Reja Neer"]
[Black "Zia, Tahsin Tajwar"]
[Result "1/2-1/2"]
[ECO "B72"]
[WhiteElo "2209"]
[BlackElo "2283"]
[Annotator "RC"]
[PlyCount "73"]
[EventDate "2022.02.15"]
[EventType "swiss"]
[EventCountry "BAN"]
[SourceTitle "playchess.com"]
[Source "ChessBase"]
[SourceQuality "1"]
[TimeControl "5400+30"]

1. e4 {[%emt 0:01:21]} c5 {[%emt 0:00:46]} 2. Nf3 {[%emt 0:01:18]} d6 {[%emt 0:00:07]} 3. d4 {[%emt 0:00:03]} cxd4 {[%emt 0:00:04]} 4. Nxd4 {[%emt 0:00:06]} Nf6 {[%emt 0:00:04]} 5. Nc3 {[%emt 0:00:09]} g6 {[%emt 0:00:05]} 6. Be3 {[%emt 0:01:52]} Nc6 {[%emt 0:01:30]} 7. f3 {[%emt 0:01:10]} h5 {[%emt 0:01:37]} 8. Qd2 {[%emt 0:01:10]} Nxd4 {[%emt 0:00:07]} 9. Bxd4 {[%emt 0:04:37]} Bh6 {[%emt 0:00:06]} 10. Be3 {[%emt 0:10:55]} Bxe3 {[%emt 0:00:11]} 11. Qxe3 {[%emt 0:00:02]} Be6 {[%emt 0:00:20]} 12. Bd3 {[%emt 0:08:07]} Qa5 {[%emt 0:00:51]} 13. O-O {[%emt 0:00:27]} Rc8 {[%emt 0:01:01]} 14. Kh1 {[%emt 0:02:45]} Qc5 {[%emt 0:00:28]} 15. Qe2 {[%emt 0:02:53]} a6 {[%emt 0:00:01]} 16. a3 {[%emt 0:00:49]} h4 {[%emt 0:00:34]} 17. Qf2 {[%emt 0:02:42]} Nh5 {[%emt 0:08:21]} 18. Qxc5 {[%emt 0:05:46]} Rxc5 {[%emt 0:00:07]} 19. Rf2 {[%emt 0:04:00]} Nf4 {[%emt 0:03:21]} 20. Rd1 {[%emt 0:01:45]} g5 {[%emt 0:04:55]} 21. Rff1 {[%emt 0:08:57]} b5 {[%emt 0:01:39]} 22. Kg1 {[%emt 0:00:55]} Ng6 {[%emt 0:02:33]} 23. Rd2 {[%emt 0:02:14]} Ne5 {[%emt 0:02:18]} 24. Kf2 {[%emt 0:05:59]} h3 {[%emt 0:02:05]} 25. g4 {[%emt 0:00:43]} Kd7 {[%emt 0:02:08]} 26. Ke3 {[%emt 0:01:22]} Rb8 {[%emt 0:02:49]} 27. Ra1 {[%emt 0:03:20]} Bc4 {[%emt 0:01:41]} 28. Nd1 {[%emt 0:02:47]} Ng6 {[%emt 0:03:05]} 29. Nc3 {[%emt 0:08:08]} Rbc8 {[%emt 0:06:31]} 30. Ne2 {[%emt 0:02:40]} Ne5 {[%emt 0:12:14]} 31. Ng1 {[%emt 0:01:31]} Rh8 {[%emt 0:00:13]} 32. Ne2 {[%emt 0:01:44]} Be6 {[%emt 0:00:44]} 33. Nd4 {[%emt 0:02:13]} Bc4 {[%emt 0:03:45]} 34. Ne2 {[%emt 0:00:18]} e6 {[%emt 0:02:13]} 35. Rb1 {[%emt 0:02:56]} Ba2 {[%emt 0:08:33]} 36. Ra1 {[%emt 0:00:33]} Bc4 {[%emt 0:00:09]} 37. Rb1 {[%emt 0:00:18]} 1/2-1/2

[Event "WALTON 40th BAN-ch U20 Open 2022"]
[Site "Dhaka"]
[Date "2022.02.20"]
[Round "6.3"]
[White "Justin Matthias Baroi"]
[Black "Noshin, Anjum"]
[Result "0-1"]
[ECO "D00"]
[WhiteElo "1575"]
[BlackElo "2017"]
[Annotator "NA RC"]
[PlyCount "86"]
[EventDate "2022.02.15"]
[EventType "swiss"]
[EventCountry "BAN"]
[SourceTitle "playchess.com"]
[Source "ChessBase"]
[SourceQuality "1"]
[TimeControl "5400+30"]

{[%evp 8,75,-28,-45,-32,-31,-24,-81,-92,-112,-101,32767,32767,-110,-68,-161,-102,-156,-101,-128,-107,-114,-121,-120,-115,-125,-133,-132,-77,-70,-76,-73,-64,-116,-114,-93,-56,32767,32767,32767,32767,32767,-195,-213,-210,32767,-200,-215,-228,32767,32767,32767,32767,32767,32767,32767,32767,32767,-288,32767,32767,-331,-314,32767,32767,32767,32767,32767,32767,-539]} 1. d4 {[%emt 0:00:10]} d5 {[%emt 0:01:38]} 2. Nc3 {[%emt 0:00:35]} Nf6 {[%emt 0:00:12]} 3. Bf4 {[%emt 0:00:22]} e6 {[%emt 0:00:08]} 4. e3 {[%emt 0:00:43]} Bb4 {[%emt 0:00:32]} 5. Bd3 {[%emt 0:00:29]} c5 {[%emt 0:00:40]} 6. dxc5 {[%emt 0:02:12]} Nbd7 {[%emt 0:03:06]} 7. a3 {[%emt 0:06:11]} (7. Nge2 $11) 7... Bxc3+ {[%emt 0:01:14]} 8. bxc3 {[%emt 0:00:01]} e5 {[%emt 0:02:53]} 9. Bg3 {[%emt 0:07:51]} Qa5 {[%emt 0:00:23]} 10. Qd2 {[%emt 0:04:15] [#]} ({Don't go for} 10. Ne2 $2 e4 11. O-O (11. c6 $2 bxc6 12. O-O O-O $19) 11... exd3 12. cxd3 Nxc5 $19) 10... Qxc5 {[%emt 0:04:25]} ({Better is} 10... h5 $1 $17 {[%cal Rh5h4]} 11. h4 O-O) 11. Nh3 {[%emt 0:14:25]} (11. f4 $17) 11... O-O {[%emt 0:03:26]} 12. O-O {[%emt 0:03:17]} (12. f4 $142) 12... Re8 {[%emt 0:06:30]} 13. f3 {[%emt 0:06:59]} Nb6 {[%emt 0:06:27]} 14. Nf2 {[%emt 0:04:55]} e4 {[%emt 0:14:05]} 15. fxe4 {[%emt 0:02:32]} dxe4 {[%emt 0:00:39]} 16. Be2 {[%emt 0:00:24]} Be6 {[%emt 0:03:53]} 17. Qd4 {[%emt 0:04:24] [#]} Rac8 {[%emt 0:02:17]} (17... Qxd4 $142 $1 18. cxd4 Bc4) 18. Be5 {[%emt 0:06:27]} Bc4 {[%emt 0:04:44]} 19. Bxf6 {[%emt 0:09:44]} Bxe2 {[%emt 0:01:27]} 20. Rfe1 {[%emt 0:00:33]} gxf6 {[%emt 0:13:06]} 21. Rxe2 {[%emt 0:02:01] [#]} Qxc3 {[%emt 0:29:15]} (21... f5 $1 $17 22. Qxc5 Rxc5) 22. Rd1 {[%emt 0:04:06]} Qxd4 {[%emt 0:00:00]} 23. exd4 {[%emt 0:02:50]} f5 {[%emt 0:00:00]} 24. Nh3 {[%emt 0:00:47]} Nc4 {[%emt 0:00:00]} 25. a4 {[%emt 0:07:29]} Nd6 {[%emt 0:00:00]} 26. Nf4 {[%emt 0:00:43]} Rc4 {[%emt 0:00:00]} 27. Nd5 {[%emt 0:01:51]} Kg7 {[%emt 0:00:00]} ({Weaker is} 27... Rxa4 28. Nf6+ Kf8 29. Nxe8 Kxe8 30. Re3 $15) 28. a5 {[%emt 0:02:47]} Ra4 {[%emt 0:00:00]} 29. Re3 {[%emt 0:00:25]} Re6 {[%emt 0:00:00]} 30. Nf4 {[%emt 0:01:04]} Re8 {[%emt 0:00:00]} 31. Rg3+ {[%emt 0:01:02]} Kf8 {[%emt 0:00:00]} 32. Nh5 {[%emt 0:02:49]} Rc8 {[%emt 0:00:00]} ({Don't blunder} 32... Rxa5 $2 33. Rc3 $19) 33. c3 {[%emt 0:01:01]} Rac4 {[%emt 0:00:00]} 34. Nf6 {[%emt 0:00:40]} Rxc3 {[%emt 0:00:00]} 35. Rxc3 {[%emt 0:00:48]} Rxc3 {[%emt 0:00:00]} 36. Nd7+ {[%emt 0:00:29]} Ke7 {[%emt 0:00:00]} 37. Nc5 {[%emt 0:00:08]} Ra3 {[%emt 0:00:00]} 38. Rc1 $19 {[%emt 0:01:00]} Rxa5 {[%emt 0:00:00]} 39. Nxb7 {[%emt 0:00:15]} Nxb7 {[%emt 0:00:00]} 40. Rc7+ {[%emt 0:00:11]} Ke6 {[%emt 0:00:00]} 41. Rxb7 {[%emt 0:00:08]} e3 {[%emt 0:00:00]} 42. Rb1 {[%emt 0:00:20]} Kd5 {[%emt 0:00:00]} 43. Kf1 {[%emt 0:00:24]} Kxd4 {[%emt 0:00:00]} 0-1

[Event "WALTON 40th BAN-ch U20 Open 2022"]
[Site "Dhaka"]
[Date "2022.02.20"]
[Round "6.4"]
[White "Kazi Afsan Rawnak, Anan"]
[Black "Swarnavo Choudhury"]
[Result "0-1"]
[ECO "C05"]
[WhiteElo "1524"]
[BlackElo "1945"]
[Annotator "NA RC"]
[PlyCount "70"]
[EventDate "2022.02.15"]
[EventType "swiss"]
[EventCountry "BAN"]
[SourceTitle "playchess.com"]
[Source "ChessBase"]
[SourceQuality "1"]
[TimeControl "5400+30"]

{[%evp 8,48,33,14,13,20,27,31,32767,32767,32767,-36,30,-20,-32,-37,-57,-20,-52,-69,32767,-54,32767,-50,-43,32767,-58,-62,-49,32767,-56,-92,-84,-85,-79,32767,32767,32767,-71,-75,32767,32767,-75]} 1. e4 {[%emt 0:00:27]} e6 {[%emt 0:00:20]} 2. d4 {[%emt 0:00:34]} d5 {[%emt 0:00:06]} 3. Nd2 {[%emt 0:00:44]} c5 {[%emt 0:00:25]} 4. Ngf3 {[%emt 0:00:24]} Nc6 {[%emt 0:02:07]} 5. c3 {[%emt 0:03:29]} Nf6 {[%emt 0:03:01]} 6. e5 {[%emt 0:02:55]} Ne4 {[%emt 0:04:04]} 7. Bd3 {[%emt 0:02:43]} Nxd2 {[%emt 0:05:33]} 8. Bxd2 {[%emt 0:05:06]} Qb6 {[%emt 0:01:21]} 9. Qb3 {[%emt 0:03:56]} ({White should play} 9. dxc5 $11 Qxb2 10. O-O) 9... Bd7 {[%emt 0:13:49]} (9... Qxb3 $142 10. axb3 cxd4) 10. Be3 {[%emt 0:04:32]} (10. dxc5 $142 Bxc5 11. O-O) 10... c4 {[%emt 0:10:36]} 11. Qxb6 {[%emt 0:01:07]} axb6 {[%emt 0:00:01]} 12. Bc2 {[%emt 0:01:50]} b5 $1 {[%emt 0:06:33]} 13. b4 {[%emt 0:05:07]} (13. a3 $142) 13... cxb3 {[%emt 0:11:01]} 14. Bxb3 {[%emt 0:00:21]} b4 {[%emt 0:01:14]} 15. Bd2 {[%emt 0:08:37]} Na5 {[%emt 0:00:47]} 16. O-O {[%emt 0:01:56]} bxc3 {[%emt 0:02:16]} 17. Bxc3 {[%emt 0:00:28]} Ba3 {[%emt 0:03:35]} 18. Rab1 {[%emt 0:05:41]} O-O {[%emt 0:03:45]} 19. Bb2 {[%emt 0:14:57]} Be7 {[%emt 0:09:18]} 20. Rfc1 {[%emt 0:05:37]} Rfc8 {[%emt 0:03:09]} 21. Rxc8+ {[%emt 0:07:52]} Rxc8 {[%emt 0:00:22]} 22. Rc1 {[%emt 0:00:27]} Nc4 {[%emt 0:02:07]} 23. Ba1 {[%emt 0:09:11]} h6 {[%emt 0:04:54]} 24. Rc2 {[%emt 0:03:10]} Bb4 $17 {[%emt 0:01:52]} 25. Bc3 {[%emt 0:02:06]} Na3 {[%emt 0:00:58]} 26. Bxb4 {[%emt 0:01:26]} Nxc2 {[%emt 0:00:08]} 27. Bc5 {[%emt 0:00:24]} Nxd4 {[%emt 0:00:43]} 28. Nxd4 {[%emt 0:00:46]} Rxc5 {[%emt 0:00:03]} 29. Kf1 {[%emt 0:00:27]} f6 {[%emt 0:00:21]} 30. f4 {[%emt 0:09:10]} Kf7 {[%emt 0:00:43]} 31. Ke2 {[%emt 0:00:00]} Bb5+ {[%emt 0:00:58]} 32. Kd2 {[%emt 0:00:00]} Bc4 {[%emt 0:00:20]} 33. f5 {[%emt 0:00:00]} Bxb3 {[%emt 0:02:14]} 34. axb3 {[%emt 0:00:00]} fxe5 {[%emt 0:00:50]} 35. fxe6+ {[%emt 0:00:00]} Kf6 {[%emt 0:00:52]} 0-1

[Event "WALTON 40th BAN-ch U20 Open 2022"]
[Site "Dhaka"]
[Date "2022.02.20"]
[Round "6.6"]
[White "Souradip, Datta"]
[Black "Mortuza Mahathir, Islam"]
[Result "0-1"]
[ECO "B45"]
[WhiteElo "1198"]
[BlackElo "1877"]
[Annotator "NA"]
[PlyCount "52"]
[EventDate "2022.02.15"]
[EventType "swiss"]
[EventCountry "BAN"]
[SourceTitle "playchess.com"]
[Source "ChessBase"]
[SourceQuality "1"]
[TimeControl "5400+30"]

{[%evp 8,51,26,35,28,-1,0,-33,29,0,0,26,12,-91,32767,-126,-95,-100,-86,32767,32767,-143,-99,32767,-177,-240,-282,-294,-292,-520,-445,-483,-396,-619,-920,-1768,-552,-938,462,32767,32767,32767,32767,-29998,-29999,-29999]} 1. e4 {[%emt 0:00:30]} c5 {[%emt 0:00:08]} 2. Nf3 {[%emt 0:00:18]} e6 {[%emt 0:00:06]} 3. d4 {[%emt 0:00:34]} cxd4 {[%emt 0:00:06]} 4. Nxd4 {[%emt 0:00:44]} Nc6 {[%emt 0:00:07]} 5. Nc3 {[%emt 0:00:41]} Nf6 {[%emt 0:02:34]} 6. Bg5 {[%emt 0:01:37]} Be7 {[%emt 0:01:27]} 7. Nxc6 {[%emt 0:06:37]} bxc6 {[%emt 0:00:05]} 8. e5 {[%emt 0:00:11]} Nd5 {[%emt 0:00:07]} 9. Bxe7 {[%emt 0:00:09]} Qxe7 {[%emt 0:00:04]} 10. Nxd5 {[%emt 0:04:38]} (10. Qd4 $11) 10... exd5 {[%emt 0:01:16]} 11. Qd4 {[%emt 0:14:15]} (11. Qe2 $142) 11... d6 {[%emt 0:02:46]} 12. f4 {[%emt 0:00:19]} O-O {[%emt 0:01:39]} 13. O-O-O {[%emt 0:01:05]} dxe5 {[%emt 0:00:43]} 14. fxe5 {[%emt 0:01:15]} (14. Qxe5 $142 Qxe5 15. fxe5) 14... Re8 {[%emt 0:00:11]} (14... Be6 $142 15. Kb1 Rfb8) 15. Re1 {[%emt 0:00:51]} Be6 {[%emt 0:04:08]} 16. a3 {[%emt 0:07:16]} (16. Qf2 {might work better.}) 16... c5 {[%emt 0:01:35]} 17. Qd2 {[%emt 0:02:25]} Rab8 {[%emt 0:00:32]} 18. c3 $2 {[%emt 0:04:38]} (18. Re3 {might work better.}) 18... Rb6 {[%emt 0:02:13]} 19. Re2 {[%emt 0:01:45]} c4 {[%emt 0:02:07]} 20. Qd4 {[%emt 0:01:29]} Reb8 {[%emt 0:00:45]} 21. g3 {[%emt 0:06:55] [#]} Rb5 {[%emt 1:18:21]} 22. b4 Rxb4 $4 {[%emt 0:00:00]} 23. Rd2 {[%emt 0:43:48]} Rb2 24. Rxb2 {[%emt 0:00:00]} Qxa3 {[%emt 0:00:00]} 25. Qd2 {[%emt 0:00:00]} Qa1+ {[%emt 0:00:00]} 26. Kc2 {[%emt 0:00:00]} Rxb2# {[%emt 0:02:30]} 0-1

[Event "WALTON 40th BAN-ch U20 Open 2022"]
[Site "Dhaka"]
[Date "2022.02.21"]
[Round "7.7"]
[White "Sajib, Das"]
[Black "Justin Matthias Baroi"]
[Result "0-1"]
[ECO "C00"]
[WhiteElo "1816"]
[BlackElo "1575"]
[Annotator "NA RC"]
[PlyCount "186"]
[EventDate "2022.02.15"]
[EventType "swiss"]
[EventCountry "BAN"]
[SourceTitle "playchess.com"]
[Source "ChessBase"]
[SourceQuality "1"]
[TimeControl "5400+30"]

1. e4 {[%emt 0:10:37]} e6 {[%emt 0:00:20]} 2. d3 {[%emt 0:00:21]} d5 {[%emt 0:00:29]} 3. Nd2 {[%emt 0:00:03]} c5 {[%emt 0:01:16]} 4. Ngf3 {[%emt 0:00:06]} Nc6 {[%emt 0:00:16]} 5. g3 {[%emt 0:00:04]} Nf6 {[%emt 0:00:37]} 6. Bg2 {[%emt 0:00:14]} dxe4 {[%emt 0:00:29]} 7. dxe4 {[%emt 0:00:04]} e5 {[%emt 0:00:58]} 8. O-O {[%emt 0:00:10]} b5 {[%emt 0:00:53]} (8... Be6 $11 {remains equal.}) 9. Re1 {[%emt 0:00:19]} (9. a4 $16 b4 10. Nc4) 9... Bg4 {[%emt 0:00:57]} 10. h3 {[%emt 0:00:42]} Bh5 {[%emt 0:01:10]} 11. c3 {[%emt 0:01:01]} Bd6 {[%emt 0:01:40]} (11... Be7 $14) 12. Qc2 {[%emt 0:00:48]} (12. g4 $16 Bg6 13. g5) 12... Qb6 {[%emt 0:02:12]} (12... O-O $142) 13. a4 {[%emt 0:00:30]} ({White should try} 13. g4 Bg6 14. a4) 13... O-O {[%emt 0:03:21]} (13... Bxf3 $16 14. Bxf3 (14. Nxf3 b4 $16) 14... b4) 14. Nf1 {[%emt 0:01:09]} (14. Qd3 $18) 14... h6 {[%emt 0:02:11]} ({Black should try} 14... b4 $14) 15. g4 {[%emt 0:07:42]} Bg6 {[%emt 0:00:38]} 16. Ng3 {[%emt 0:00:03]} ({Resist} 16. Qd3 Na5 $14) ({White should play} 16. axb5 $16 Qxb5 17. Nh4) 16... a6 {[%emt 0:09:55]} 17. Nh4 {[%emt 0:09:33]} ({Better is} 17. Nf5 $16 Bxf5 18. exf5) 17... Rae8 {[%emt 0:03:12]} (17... c4 $11) 18. g5 {[%emt 0:02:11]} hxg5 {[%emt 0:02:37]} 19. Bxg5 {[%emt 0:00:03]} Re6 {[%emt 0:03:48]} (19... Be7 $1 $14) 20. axb5 {[%emt 0:05:11]} axb5 {[%emt 0:00:19]} 21. Red1 {[%emt 0:02:19]} (21. Nxg6 $16 fxg6 22. Be3) 21... Ne7 {[%emt 0:05:28]} (21... c4 $14) 22. Ngf5 {[%emt 0:03:54]} (22. Nhf5 $142 Re8 23. c4) 22... Bb8 $2 {[%emt 0:03:06]} (22... Nc8 $16 {is more resistant.}) 23. Rd3 $2 {[%emt 0:16:33]} (23. Bxf6 $18 gxf6 24. Rd7) 23... Bxf5 {[%emt 0:02:48]} 24. exf5 {[%emt 0:03:18]} Rd6 {[%emt 0:05:50]} 25. Rg3 {[%emt 0:07:46]} Rfd8 {[%emt 0:11:25]} 26. Qe2 {[%emt 0:02:26]} (26. Bxf6 $142 Rxf6 27. Be4) 26... Ned5 {[%emt 0:12:40]} 27. Bxd5 {[%emt 0:03:18]} ({Don't blunder} 27. Qxe5 $2 Re8 28. Qxe8+ (28. Bxf6 $2 Nxf6 29. Qxe8+ Nxe8 $19) 28... Nxe8 $19) 27... Rxd5 {[%emt 0:00:31]} 28. Bh6 {[%emt 0:00:24]} Ne8 {[%emt 0:00:30]} 29. f6 $2 {[%emt 0:07:10]} (29. Bg5 $1 $11 {and White has nothing to worry.}) 29... e4 $1 {[%emt 0:07:41]} ({Weaker is} 29... Qxf6 30. Bg5 Qe6 31. Bxd8 Rxd8 32. Rd3 $16 (32. Qxb5 e4 $11)) 30. Rg2 $2 {[%emt 0:05:39]} (30. Rg4 Qxf6 31. Be3) 30... Qxf6 {[%emt 0:01:43]} 31. Bxg7 {[%emt 0:04:16]} Nxg7 {[%emt 0:00:39]} 32. Qg4 {[%emt 0:00:28]} Bf4 {[%emt 0:04:17]} 33. Kh1 {[%emt 0:04:34]} Rg5 {[%emt 0:01:05]} 34. Qe2 {[%emt 0:00:37]} Rxg2 {[%emt 0:01:18]} 35. Nxg2 {[%emt 0:00:03]} Bb8 {[%emt 0:02:11]} 36. Qxe4 {[%emt 0:01:22]} Qe5 {[%emt 0:00:24]} 37. Qxe5 {[%emt 0:00:27]} Bxe5 {[%emt 0:00:06]} 38. f4 {[%emt 0:00:19]} Bf6 {[%emt 0:00:34]} 39. Ra6 {[%emt 0:00:19]} Ne8 {[%emt 0:01:22]} 40. Rb6 {[%emt 0:00:14]} b4 {[%emt 0:02:47]} 41. Rc6 {[%emt 0:00:33]} bxc3 {[%emt 0:00:47]} 42. bxc3 {[%emt 0:00:16]} Be7 {[%emt 0:01:09]} 43. Kg1 {[%emt 0:01:01]} Rd1+ {[%emt 0:01:42]} 44. Kf2 {[%emt 0:00:07]} Rd2+ {[%emt 0:00:14]} 45. Kf3 {[%emt 0:00:55]} Rd3+ {[%emt 0:00:10]} 46. Ne3 {[%emt 0:00:49]} Rxc3 {[%emt 0:01:09]} 47. Rc8 {[%emt 0:00:11]} Kf8 {[%emt 0:00:30]} 48. Ke4 {[%emt 0:00:11]} Rc1 {[%emt 0:01:16]} 49. Nd5 {[%emt 0:00:34]} Re1+ {[%emt 0:00:14]} 50. Kf5 {[%emt 0:01:13]} c4 {[%emt 0:00:51]} 51. Nc7 {[%emt 0:00:40]} Bd6 {[%emt 0:00:34]} 52. Nxe8 {[%emt 0:00:28]} Rxe8 {[%emt 0:00:04]} 53. Rxc4 {[%emt 0:00:03]} Kg7 {[%emt 0:00:32]} 54. Kg5 {[%emt 0:00:22]} Re3 {[%emt 0:01:29]} 55. Kg4 {[%emt 0:00:28]} Re1 {[%emt 0:00:37]} 56. Rd4 {[%emt 0:00:32]} Rg1+ {[%emt 0:00:15]} 57. Kf3 {[%emt 0:00:06]} Bb8 {[%emt 0:00:32]} 58. Rb4 {[%emt 0:00:05]} Bd6 {[%emt 0:00:34]} 59. Rd4 {[%emt 0:00:07]} Bc5 {[%emt 0:00:17]} 60. Rc4 {[%emt 0:00:32]} Be7 {[%emt 0:00:10]} 61. Re4 {[%emt 0:00:21]} Bf6 {[%emt 0:00:15]} 62. Kf2 {[%emt 0:00:36]} Rg6 {[%emt 0:01:45]} 63. Ra4 {[%emt 0:00:16]} Bh4+ {[%emt 0:00:28]} 64. Kf1 {[%emt 0:01:01]} Rg3 {[%emt 0:00:42]} 65. f5 {[%emt 0:01:51]} Bf6 {[%emt 0:00:28]} 66. Kf2 {[%emt 0:01:02]} Rxh3 {[%emt 0:00:14]} 67. Rg4+ {[%emt 0:00:15]} Kf8 {[%emt 0:00:19]} 68. Ra4 {[%emt 0:00:10]} Rh5 {[%emt 0:00:29]} 69. Ra5 {[%emt 0:00:32]} Bd4+ {[%emt 0:00:24]} 70. Kf3 {[%emt 0:00:03]} f6 {[%emt 0:00:36]} 71. Kg4 {[%emt 0:01:43]} Rg5+ {[%emt 0:00:07]} 72. Kf4 {[%emt 0:00:58]} Kg7 {[%emt 0:00:55]} 73. Rd5 {[%emt 0:00:15]} Bb2 {[%emt 0:00:54]} 74. Rb5 {[%emt 0:00:26]} Bc1+ {[%emt 0:00:43]} 75. Ke4 {[%emt 0:00:25]} Kh6 {[%emt 0:00:22]} 76. Rb1 {[%emt 0:00:34]} Ba3 {[%emt 0:00:43]} 77. Ra1 {[%emt 0:00:36]} Bb2 {[%emt 0:00:31]} 78. Rb1 $19 {[%emt 0:00:31]} Be5 {[%emt 0:00:09]} 79. Rh1+ {[%emt 0:00:57]} Kg7 {[%emt 0:00:09]} 80. Rb1 {[%emt 0:00:21]} Rg4+ {[%emt 0:00:21]} 81. Kd5 {[%emt 0:00:18]} Rf4 {[%emt 0:00:34]} 82. Ke6 {[%emt 0:00:10]} Rh4 {[%emt 0:01:43]} 83. Rb7+ {[%emt 0:00:23]} Kh6 {[%emt 0:00:22]} 84. Rb1 {[%emt 0:00:31]} Rg4 {[%emt 0:01:28]} 85. Rb7 {[%emt 0:01:00]} Rg8 {[%emt 0:00:36]} 86. Rb1 {[%emt 0:00:21]} Rg4 {[%emt 0:00:32]} 87. Rb7 {[%emt 0:00:09]} Rd4 {[%emt 0:00:13]} 88. Rb1 {[%emt 0:01:24]} Rd6+ {[%emt 0:00:20]} 89. Kf7 {[%emt 0:00:20]} Kg5 {[%emt 0:00:09]} 90. Rf1 {[%emt 0:01:21]} Bf4 {[%emt 0:00:23]} 91. Ke7 {[%emt 0:00:41]} Rb6 {[%emt 0:00:26]} 92. Kd7 {[%emt 0:00:32]} Kxf5 {[%emt 0:00:12]} 93. Rg1 {[%emt 0:00:35]} Rb3 {[%emt 0:01:03]} 0-1

[Event "WALTON 40th BAN-ch U20 Open 2022"]
[Site "Dhaka"]
[Date "2022.02.21"]
[Round "7.8"]
[White "Sajidul, Haque"]
[Black "Mortuza Muhtadi, Islam"]
[Result "1/2-1/2"]
[ECO "B01"]
[WhiteElo "1766"]
[BlackElo "1485"]
[Annotator "NA RC"]
[PlyCount "156"]
[EventDate "2022.02.15"]
[EventType "swiss"]
[EventCountry "BAN"]
[SourceTitle "playchess.com"]
[Source "ChessBase"]
[SourceQuality "1"]
[TimeControl "5400+30"]

1. e4 {[%emt 0:00:05]} d5 {[%emt 0:00:07]} 2. exd5 {[%emt 0:00:08]} Nf6 {[%emt 0:00:05]} 3. d4 {[%emt 0:01:10]} Bg4 {[%emt 0:00:20]} 4. f3 {[%emt 0:03:08]} Bf5 {[%emt 0:00:04]} 5. Bb5+ {[%emt 0:03:04]} c6 {[%emt 0:08:05]} 6. dxc6 {[%emt 0:00:48]} bxc6 {[%emt 0:00:19]} 7. Bd3 {[%emt 0:01:50]} Bxd3 {[%emt 0:01:35]} 8. Qxd3 {[%emt 0:00:04]} e6 {[%emt 0:01:38]} 9. Nd2 {[%emt 0:03:55]} Be7 {[%emt 0:01:31]} 10. Ne4 {[%emt 0:00:43]} O-O {[%emt 0:00:15]} 11. Ne2 {[%emt 0:00:29]} Nxe4 {[%emt 1:22:01]} 12. fxe4 {[%emt 0:00:13]} c5 {[%emt 0:00:00]} 13. c3 {[%emt 0:01:36]} Nc6 {[%emt 0:00:00]} 14. O-O {[%emt 0:04:30]} cxd4 {[%emt 0:00:00]} 15. cxd4 {[%emt 0:00:46]} Nb4 {[%emt 0:00:00]} 16. Qd2 {[%emt 0:11:26]} Rc8 {[%emt 0:00:00]} 17. Nc3 {[%emt 0:02:43]} Qb6 {[%emt 0:00:00]} 18. Kh1 {[%emt 0:05:13]} Rfd8 {[%emt 0:00:00]} 19. Qf2 {[%emt 0:00:39]} f6 {[%emt 0:00:00]} 20. Rd1 {[%emt 0:01:48]} Rc7 {[%emt 0:00:00]} 21. a3 {[%emt 0:03:31]} Nc6 {[%emt 0:00:00]} 22. Be3 {[%emt 0:00:19]} Qb3 {[%emt 0:00:00]} 23. d5 {[%emt 0:02:24]} Ne5 {[%emt 0:00:00]} 24. Bf4 {[%emt 0:11:47]} Bc5 {[%emt 0:00:00]} 25. Qg3 {[%emt 0:01:23]} Qxb2 {[%emt 0:00:00]} 26. Na4 {[%emt 0:02:24]} Qf2 {[%emt 0:00:00]} 27. Nxc5 {[%emt 0:03:32]} Qxg3 {[%emt 0:00:00]} 28. Bxg3 {[%emt 0:05:15]} Rxc5 {[%emt 0:00:00]} 29. Bxe5 {[%emt 0:00:26]} fxe5 {[%emt 0:00:00]} 30. dxe6 {[%emt 0:00:08]} Rdc8 {[%emt 0:00:00]} 31. Kg1 {[%emt 0:03:03]} R5c6 {[%emt 0:00:00]} 32. e7 {[%emt 0:03:16]} Re8 {[%emt 0:00:00]} 33. Rd7 {[%emt 0:02:50]} a6 {[%emt 0:00:00]} 34. Rad1 {[%emt 0:09:12]} Kf7 {[%emt 0:00:45]} 35. R1d6 {[%emt 0:01:29]} Rc1+ {[%emt 0:00:16]} 36. Kf2 {[%emt 0:00:01]} Rc2+ {[%emt 0:00:19]} 37. Kf1 {[%emt 0:00:33]} Rc1+ {[%emt 0:00:20]} 38. Ke2 {[%emt 0:00:10]} Rc2+ {[%emt 0:00:04]} 39. Rd2 {[%emt 0:02:02]} Rxd2+ {[%emt 0:00:08]} 40. Kxd2 {[%emt 0:00:03]} Rxe7 {[%emt 0:00:06]} 41. Rd5 {[%emt 0:03:19]} Ke6 {[%emt 0:03:10]} 42. Kc3 {[%emt 0:02:15]} Rd7 {[%emt 0:03:31]} 43. Ra5 {[%emt 0:00:01]} Rd6 {[%emt 0:01:01]} 44. Rc5 {[%emt 0:00:40]} Rd4 {[%emt 0:02:48]} 45. Rc7 {[%emt 0:00:38]} Rd7 {[%emt 0:00:11]} 46. Rc4 {[%emt 0:01:01]} Kd6 {[%emt 0:02:07]} 47. Ra4 {[%emt 0:01:00]} Rc7+ {[%emt 0:00:11]} 48. Kd3 {[%emt 0:00:59]} Rc6 {[%emt 0:00:24]} 49. Ra5 {[%emt 0:00:19]} Ke6 {[%emt 0:00:24]} 50. a4 {[%emt 0:00:33]} Rd6+ {[%emt 0:01:28]} 51. Kc3 {[%emt 0:00:36]} Rc6+ {[%emt 0:00:26]} 52. Kb3 {[%emt 0:00:35]} Rb6+ {[%emt 0:00:14]} 53. Kc3 {[%emt 0:00:47]} Rc6+ {[%emt 0:02:00]} 54. Kd3 {[%emt 0:00:01]} Rd6+ {[%emt 0:00:11]} 55. Ke3 {[%emt 0:00:01]} Rb6 {[%emt 0:00:26]} 56. h4 {[%emt 0:00:59]} Rd6 {[%emt 0:00:21]} 57. Rc5 {[%emt 0:01:05]} h6 {[%emt 0:00:23]} 58. Rc7 {[%emt 0:01:14]} Kf6 {[%emt 0:00:43]} 59. a5 {[%emt 0:00:24]} g6 {[%emt 0:00:23]} 60. h5 {[%emt 0:01:56]} Kg5 {[%emt 0:00:41]} 61. hxg6 {[%emt 0:00:20]} Kxg6 {[%emt 0:00:02]} 62. Rb7 {[%emt 0:00:21]} Kf6 {[%emt 0:00:33]} 63. Kf3 {[%emt 0:00:57]} Kg5 {[%emt 0:00:50]} 64. Rb6 {[%emt 0:00:57]} Rf6+ {[%emt 0:00:28]} 65. Ke3 {[%emt 0:00:43]} h5 {[%emt 0:00:41]} 66. Kd3 {[%emt 0:02:13]} Rf2 {[%emt 0:00:49]} 67. Rxa6 {[%emt 0:00:57]} Rxg2 {[%emt 0:00:01]} 68. Ra8 {[%emt 0:00:53]} Ra2 {[%emt 0:00:10]} 69. Kc4 {[%emt 0:00:38]} h4 {[%emt 0:00:17]} 70. Kd5 {[%emt 0:00:20]} Kf4 {[%emt 0:02:38]} 71. Rf8+ {[%emt 0:01:12]} Ke3 {[%emt 0:00:00]} 72. Ra8 {[%emt 0:00:00]} Kf4 {[%emt 0:00:00]} 73. a6 h3 {[%emt 0:01:30]} 74. Re8 {[%emt 0:00:52]} Ke3 {[%emt 0:00:30]} 75. Rh8 {[%emt 0:00:36]} Ra5+ {[%emt 0:00:00]} 76. Ke6 {[%emt 0:00:14]} Rxa6+ {[%emt 0:00:00]} 77. Kxe5 {[%emt 0:00:07]} Ra5+ {[%emt 0:00:00]} 78. Kd6 {[%emt 0:00:22]} Kxe4 {[%emt 0:02:00]} 1/2-1/2